fUST/lending_fUST_20250227
["ID","MTS","AMOUNT","RATE_DAILY","PERIOD"]
[354686003,1740615062108,-738.89,0.00047397,120]
[354686004,1740615062117,-590.36,0.00047397,120]
[354686005,1740615062127,-693.33,0.00047397,120]
[354686006,1740615062139,-4981.65,0.00047397,3]
[354686007,1740615062148,-500.0,0.00047397,120]
[354686008,1740615062157,-500.0,0.00047397,30]
[354686009,1740615062166,-500.0,0.00047397,120]
[354686010,1740615062175,-1146.18,0.00047397,120]
[354686011,1740615062185,-1181.19,0.00047397,120]
[354686012,1740615062194,-500.0,0.00047397,120]
[354686013,1740615062203,-588.27,0.00047397,120]
[354686014,1740615062212,-1670.73,0.00047397,120]
[354686015,1740615062221,-1677.55,0.00047397,120]
[354686016,1740615062230,-1596.58,0.00047397,120]
[354686017,1740615062239,-1540.89,0.00047397,120]
[354686018,1740615062249,-500.0,0.00047397,120]
[354686019,1740615062259,-785.7,0.00047397,120]
[354686020,1740615062268,-500.0,0.00047397,120]
[354686021,1740615062277,-500.0,0.00047397,120]
[354686022,1740615062286,-500.0,0.00047397,120]
[354686023,1740615062295,-500.0,0.00047397,120]
[354686024,1740615062304,-500.0,0.00047397,120]
[354686025,1740615062314,-26683.27,0.00047397,120]
[354686026,1740615062323,-151.0,0.00047397,120]
[354686027,1740615062332,-500.0,0.00047397,120]
[354686028,1740615062342,-4766.98,0.00047397,120]
[354686029,1740615062351,-1208.44,0.00047397,120]
[354686030,1740615062361,-500.0,0.00047397,120]
[354686031,1740615062371,-500.0,0.00047397,120]
[354686032,1740615062380,-151.0,0.00047397,120]
[354686033,1740615062389,-500.0,0.00047397,120]
[354686034,1740615062398,-112192.28,0.00047397,7]
[354686035,1740615062506,-500.0,0.00047397,120]
[354686036,1740615062515,-500.0,0.00047397,120]
[354686037,1740615062524,-7217.94,0.00047397,120]
[354686038,1740615062533,-1000.0,0.00047397,2]
[354686039,1740615062543,-500.0,0.00047397,120]
[354686040,1740615062553,-1904.3,0.00047397,120]
[354686041,1740615062563,-500.0,0.00047397,120]
[354686042,1740615062574,-3137.06,0.00047397,120]
[354686043,1740615062585,-500.0,0.00047397,120]
[354686044,1740615062595,-500.0,0.00047397,120]
[354686045,1740615062609,-500.0,0.00047397,120]
[354686046,1740615062625,-151.0,0.00047397,120]
[354686047,1740615062638,-1065.04,0.00047397,120]
[354686048,1740615062649,-500.0,0.00047397,120]
[354686049,1740615062660,-7156.05,0.00047397,120]
[354686050,1740615062671,-851.49,0.00047397,120]
[354686051,1740615062680,-500.0,0.00047397,120]
[354686052,1740615062690,-2000.3,0.00047397,120]
[354686053,1740615062699,-500.0,0.00047397,120]
[354686054,1740615062713,-4853.3,0.00047397,120]
[354686055,1740615062724,-500.0,0.00047397,120]
[354686056,1740615062738,-500.0,0.00047397,120]
[354686057,1740615062749,-151.0,0.00047397,120]
[354686058,1740615062760,-765.25,0.00047397,120]
[354686059,1740615062770,-927.15,0.00047397,120]
[354686060,1740615062779,-1755.88,0.00047397,120]
[354686061,1740615062789,-678.89,0.00047397,120]
[354686062,1740615062798,-500.0,0.00047397,120]
[354686063,1740615062807,-500.0,0.00047397,120]
[354686064,1740615062816,-500.0,0.00047397,120]
[354686065,1740615062825,-500.0,0.00047397,120]
[354686066,1740615062834,-500.0,0.00047397,120]
[354686067,1740615062843,-500.0,0.00047397,120]
[354686068,1740615062853,-500.0,0.00047397,120]
[354686069,1740615062862,-500.0,0.00047397,120]
[354686070,1740615062871,-543.8,0.00047397,120]
[354686071,1740615062881,-500.0,0.00047397,120]
[354686072,1740615062890,-2299.11,0.00047397,120]
[354686073,1740615062899,-1746.84,0.00047397,120]
[354686074,1740615062908,-500.0,0.00047397,120]
[354686075,1740615062917,-500.0,0.00047397,120]
[354686076,1740615062926,-500.0,0.00047397,120]
[354686077,1740615062935,-151.0,0.00047397,120]
[354686078,1740615062944,-551.64,0.00047397,120]
[354686079,1740615062954,-722.24,0.00047397,120]
[354686080,1740615062964,-942.05,0.00047397,120]
[354686081,1740615062973,-151.0,0.00047397,120]
[354686082,1740615062985,-610.04,0.00047397,120]
[354686083,1740615062994,-2261.32,0.00047397,120]
[354686084,1740615063003,-500.0,0.00047397,120]
[354686085,1740615063013,-153.577231,0.00047397,120]
[354686086,1740615063022,-1859.9,0.00047397,120]
[354686087,1740615063032,-500.0,0.00047397,21]
[354686088,1740615063041,-500.0,0.00047397,120]
[354686089,1740615063051,-500.0,0.00047397,120]
[354686090,1740615063060,-407.70227789,0.00047397,120]
[354686091,1740615063069,-617.15,0.00047397,120]
[354686092,1740615063079,-5250.88,0.00047397,120]
[354686093,1740615063088,-501.16755942,0.00047397,120]
[354686094,1740615063098,-500.0,0.00047397,120]
[354686095,1740615063107,-500.0,0.00047397,120]
[354686096,1740615063117,-500.0,0.00047397,120]
[354686097,1740615063126,-151.0,0.00047397,30]
[354686098,1740615063136,-151.619424,0.00047397,120]
[354686099,1740615063145,-500.0,0.00047397,120]
[354686100,1740615063155,-500.0,0.00047397,120]
[354686101,1740615063164,-500.0,0.00047397,120]
[354686102,1740615063174,-151.505747,0.00047397,120]
[354686103,1740615063183,-151.0,0.00047397,120]
[354686104,1740615063193,-500.0,0.00047397,120]
[354686105,1740615063203,-500.0,0.00047397,120]
[354686106,1740615063213,-500.0,0.00047397,120]
[354686107,1740615063223,-500.0,0.00047397,120]
[354686108,1740615063232,-506.93,0.00047397,120]
[354686109,1740615063242,-814.87,0.00047397,120]
[354686110,1740615063254,-500.0,0.00047397,120]
[354686111,1740615063264,-500.0,0.00047397,120]
[354686112,1740615063274,-34014.5,0.00047397,6]
[354686113,1740615063283,-822.12,0.00047397,120]
[354686114,1740615063293,-151.0,0.00047397,120]
[354686115,1740615063303,-500.0,0.00047397,120]
[354686116,1740615063312,-500.0,0.00047397,120]
[354686117,1740615063322,-500.0,0.00047397,120]
[354686118,1740615063332,-151.0,0.00047397,120]
[354686119,1740615063342,-500.0,0.00047397,120]
[354686120,1740615063353,-1454.69,0.00047397,120]
[354686121,1740615063363,-500.0,0.00047397,120]
[354686122,1740615063372,-500.0,0.00047397,120]
[354686123,1740615063381,-500.0,0.00047397,120]
[354686124,1740615063391,-500.0,0.00047397,120]
[354686125,1740615063401,-500.0,0.00047397,120]
[354686126,1740615063411,-500.0,0.00047397,120]
[354686127,1740615063421,-227.855139,0.00047397,120]
[354686128,1740615063431,-500.0,0.00047397,120]
[354686129,1740615063441,-500.0,0.00047397,120]
[354686130,1740615063452,-2433.83,0.00047397,120]
[354686131,1740615063462,-639.5,0.00047397,120]
[354686132,1740615063471,-227.855139,0.00047397,120]
[354686133,1740615063481,-500.0,0.00047397,120]
[354686134,1740615063491,-500.0,0.00047397,120]
[354686135,1740615063504,-10530.96,0.00047397,120]
[354686136,1740615063513,-500.0,0.00047397,120]
[354686137,1740615063523,-207.29819948,0.00047397,120]
[354686138,1740615063532,-1828.48,0.00047397,120]
[354686139,1740615063542,-3667.52,0.00047397,120]
[354686140,1740615063550,-500.0,0.00047397,120]
[354686141,1740615063559,-500.0,0.00047397,120]
[354686142,1740615063569,-900.97,0.00047397,120]
[354686143,1740615063579,-500.0,0.00047397,120]
[354686144,1740615063588,-33494.56443189,0.000474,30]
[354686145,1740615063666,-329.88893652,0.000474,30]
[354686146,1740615063681,-261.0,0.000474,30]
[354686147,1740615063699,-148409.16663159,0.000474,30]
[354686148,1740615063708,-314.71,0.000474,30]
[354686149,1740615063718,-151.0,0.000474,30]
[354686150,1740615063727,-151.289527,0.000474,120]
[354686151,1740615063737,-151.0,0.000474,120]
[354686152,1740615063748,-151.0,0.000474,120]
[354686153,1740615063758,-537.771736,0.000474,120]
[354686154,1740615063784,-537.771736,0.000474,120]
[354686155,1740615063794,-151.0,0.000474,120]
[354686156,1740615063803,-151.0,0.000474,120]
[354686157,1740615063813,-154.047082,0.000474,120]
[354686158,1740615063822,-151.660557,0.000474,120]
[354686159,1740615063832,-254.238031,0.000474,120]
[354686160,1740615063841,-254.238031,0.000474,120]
[354686161,1740615063853,-644.83524905,0.00047671,120]
[354686162,1740615063862,-443.38722618,0.00047671,120]
[354686163,1740615063871,-500.0,0.00047671,120]
[354686164,1740615063880,-500.0,0.00047671,120]
[354686165,1740615063890,-500.0,0.00047671,120]
[354686166,1740615063899,-684.48,0.00047671,120]
[354686167,1740615063909,-696.96,0.00047671,120]
[354686168,1740615063919,-500.0,0.00047671,120]
[354686169,1740615063928,-597.66,0.00047671,120]
[354686170,1740615063937,-579.5,0.00047671,120]
[354686171,1740615063947,-1194.19,0.00047671,120]
[354686172,1740615063957,-396.6263685,0.00047671,120]
[354686173,1740615063966,-522.55,0.00047671,120]
[354686174,1740615063975,-500.0,0.00047671,120]
[354686175,1740615063985,-500.0,0.00047671,120]
[354686176,1740615063994,-500.0,0.00047671,120]
[354686177,1740615064005,-284.68877623,0.00047671,120]
[354686178,1740615064014,-500.0,0.00047671,120]
[354686179,1740615064024,-500.0,0.00047671,120]
[354686180,1740615064035,-500.0,0.00047671,120]
[354686181,1740615064044,-500.0,0.00047671,120]
[354686182,1740615064150,-500.0,0.00047671,120]
[354686183,1740615064160,-535.91,0.00047671,120]
[354686184,1740615064172,-500.0,0.00047671,120]
[354686185,1740615064182,-500.0,0.00047671,120]
[354686186,1740615064191,-151.0,0.00047671,120]
[354686187,1740615064201,-500.0,0.00047671,14]
[354686188,1740615064211,-1117.48,0.00047671,120]
[354686189,1740615064226,-607.66,0.00047671,120]
[354686190,1740615064239,-500.0,0.00047671,120]
[354686191,1740615064249,-500.0,0.00047671,120]
[354686192,1740615064262,-1000.0,0.00047671,120]
[354686193,1740615064272,-500.0,0.00047671,120]
[354686194,1740615064282,-500.0,0.00047671,120]
[354686195,1740615064291,-151.0,0.00047671,120]
[354686196,1740615064301,-500.0,0.00047671,120]
[354686197,1740615064310,-500.0,0.00047671,30]
[354686198,1740615064320,-500.0,0.00047671,120]
[354686199,1740615064329,-500.0,0.00047671,120]
[354686200,1740615064338,-500.0,0.00047671,120]
[354686201,1740615064347,-151.0,0.00047671,120]
[354686202,1740615064356,-1285.36,0.00047671,120]
[354686203,1740615064365,-500.0,0.00047671,120]
[354686204,1740615064374,-515.82,0.00047671,120]
[354686205,1740615064383,-500.0,0.00047671,120]
[354686206,1740615064393,-500.0,0.00047671,120]
[354686207,1740615064402,-564.89,0.00047671,120]
[354686208,1740615064411,-500.0,0.00047671,120]
[354686209,1740615064420,-580.62,0.00047671,120]
[354686210,1740615064429,-245.0,0.00047671,120]
[354686211,1740615064439,-500.0,0.00047671,120]
[354686212,1740615064448,-542.5,0.00047671,120]
[354686213,1740615064457,-698.53,0.00047671,120]
[354686214,1740615064466,-625.66,0.00047671,120]
[354686215,1740615064475,-500.0,0.00047671,120]
[354686216,1740615064484,-500.0,0.00047671,120]
[354686217,1740615064493,-500.0,0.00047671,120]
[354686218,1740615064506,-2405.94,0.00047671,120]
[354686219,1740615064514,-500.0,0.00047671,120]
[354686220,1740615064523,-773.54,0.00047671,120]
[354686221,1740615064532,-500.0,0.00047671,120]
[354686222,1740615064543,-505.56746213,0.00047671,120]
[354686223,1740615064552,-500.0,0.00047671,120]
[354686224,1740615064561,-151.0,0.00047671,120]
[354686225,1740615064571,-694.73,0.00047671,120]
[354686226,1740615064581,-500.0,0.00047671,120]
[354686227,1740615064593,-500.0,0.00047671,120]
[354686228,1740615064603,-500.0,0.00047671,120]
[354686229,1740615064612,-500.0,0.00047671,120]
[354686230,1740615064621,-500.0,0.00047671,120]
[354686231,1740615064631,-500.0,0.00047671,120]
[354686232,1740615064640,-1595.74,0.00047671,120]
[354686233,1740615064649,-504.51,0.00047671,120]
[354686234,1740615064658,-500.0,0.00047671,120]
[354686235,1740615064667,-513.85,0.00047671,120]
[354686236,1740615064676,-2465.69,0.00047671,120]
[354686237,1740615064686,-500.0,0.00047671,120]
[354686238,1740615064696,-1275.71,0.00047671,120]
[354686239,1740615064706,-703.05,0.00047671,120]
[354686240,1740615064716,-500.0,0.00047671,120]
[354686241,1740615064725,-648.48,0.00047671,120]
[354686242,1740615064735,-500.0,0.00047671,120]
[354686243,1740615064746,-599.93,0.00047671,120]
[354686244,1740615064755,-1982.96,0.00047671,120]
[354686245,1740615064764,-237.15223232,0.00047671,120]
[354686246,1740615064774,-200.0,0.00047671,7]
[354686247,1740615064783,-2194.79,0.00047671,120]
[354686248,1740615064794,-501.77120487,0.00047671,120]
[354686249,1740615064805,-500.0,0.00047671,120]
[354686250,1740615064815,-500.0,0.00047671,120]
[354686251,1740615064825,-794.85,0.00047671,120]
[354686252,1740615064834,-500.0,0.00047671,120]
[354686253,1740615064848,-402.88657212,0.00047671,120]
[354686254,1740615064869,-603.06,0.00047671,120]
[354686255,1740615064887,-500.0,0.00047671,120]
[354686256,1740615064906,-1093.74,0.00047671,120]
[354686257,1740615064926,-500.0,0.00047671,120]
[354686258,1740615064944,-500.0,0.00047671,120]
[354686259,1740615064962,-500.0,0.00047671,120]
[354686260,1740615064977,-500.0,0.00047671,120]
[354686261,1740615064994,-500.0,0.00047671,120]
[354686262,1740615065016,-500.0,0.00047671,120]
[354686263,1740615065037,-500.0,0.00047671,120]
[354686264,1740615065051,-151.0,0.00047671,120]
[354686265,1740615065071,-500.0,0.00047671,120]
[354686266,1740615065087,-500.0,0.00047671,120]
[354686267,1740615065103,-500.0,0.00047671,120]
[354686268,1740615065118,-2272.71,0.00047671,120]
[354686269,1740615065137,-501.96,0.00047671,120]
[354686270,1740615065152,-500.0,0.00047671,30]
[354686271,1740615065168,-500.0,0.00047671,120]
[354686272,1740615065184,-500.0,0.00047671,120]
[354686273,1740615065200,-500.0,0.00047671,120]
[354686274,1740615065216,-1481.29,0.00047671,120]
[354686275,1740615065255,-540.64,0.00047671,120]
[354686276,1740615065280,-549.17,0.00047671,120]
[354686277,1740615065302,-500.0,0.00047671,120]
[354686278,1740615065323,-580.45,0.00047671,120]
[354686279,1740615065342,-500.0,0.00047671,120]
[354686280,1740615065360,-1163.16,0.00047671,120]
[354686281,1740615065377,-599.79,0.00047671,120]
[354686282,1740615065393,-724.80099426,0.00047671,120]
[354686283,1740615065736,-617.84900574,0.00047671,120]
[354686284,1740615065748,-500.0,0.00047671,120]
[354686285,1740615065757,-500.0,0.00047671,120]
[354686286,1740615065766,-487.28099426,0.00047671,120]
[354686287,1740615066265,-176.0,0.00046573,2]
[354686288,1740615066275,-500.0,0.00046849,120]
[354686289,1740615066285,-244.0,0.00047123,120]
[354686290,1740615066308,-92.68197376,0.00047123,120]
[354686291,1740615066320,-163.31802624,0.00047123,120]
[354686292,1740615066329,-120.52933515,0.00047397,120]
[354686293,1740615417617,25953.42298264,0.00022,5]
[354686294,1740615656481,-150.0,0.00022,2]
[354686295,1740615693055,2895.32880322,0.0002,2]
[354686304,1740616078348,-150.0,0.00022,2]
[354686305,1740616082886,-150.0,0.0002035,2]
[354686307,1740616105214,-150.0,0.0002035,2]
[354686308,1740616105794,-150.0,0.0002035,2]
[354686310,1740616109572,698.52801989,0.000199,2]
[354686311,1740616114551,608.16228023,9e-05,2]
[354686312,1740616118225,210.0,0.0001,2]
[354686313,1740616120004,2388.34926711,0.000135,2]
[354686314,1740616124966,-150.0,0.0002035,2]
[354686315,1740616177638,-150.0,0.0002035,2]
[354686356,1740616232531,-8136.04098412,0.0002035,2]
[354686357,1740616232541,-264.40569012,0.00021,2]
[354686358,1740616232550,-3040.13637942,0.00021,2]
[354686359,1740616235683,-150.0,0.00021,2]
[354686450,1740616246654,-1239.9,0.00021,2]
[354686451,1740616246710,-274.59521293,0.00021,2]
[354686452,1740616373079,-150.0,0.00021,2]
[354686453,1740616411421,465.68534659,0.000189,2]
[354686454,1740616422308,-150.0,0.00021,2]
[354686455,1740616483631,-5376.02075973,0.00021,2]
[354686456,1740616483654,-238.31706172,0.00021,2]
[354686457,1740616483679,-150.22433504,0.000219,2]
[354686458,1740616483703,-19235.43784351,0.00022,2]
[354686459,1740616484554,-150.0,0.00022,2]
[354686460,1740616485112,-6584.56215649,0.00022,2]
[354686461,1740616485138,-345.83702322,0.00022,2]
[354686462,1740616485165,-281.26822735,0.00022,2]
[354686463,1740616485190,-17788.33259294,0.00022,2]
[354686464,1740616486169,-7772.13530142,0.00022,2]
[354686465,1740616486196,-1000.0,0.00022,2]
[354686466,1740616486222,-486.8261314,0.000221,2]
[354686467,1740616486247,-275.4529829,0.00022264,2]
[354686468,1740616486271,-500.0,0.00023,2]
[354686469,1740616486295,-718.87995169,0.00023,2]
[354686470,1740616486321,-866.12984552,0.00023,2]
[354686471,1740616486344,-500.0,0.00023,2]
[354686472,1740616486368,-500.0,0.00023,2]
[354686473,1740616486392,-500.0,0.00023,2]
[354686474,1740616486417,-500.0,0.00023,2]
[354686475,1740616486443,-500.0,0.00023,2]
[354686476,1740616486466,-500.0,0.00023,2]
[354686477,1740616486491,-600.0,0.00023,2]
[354686478,1740616486516,-500.0,0.00023,2]
[354686479,1740616486540,-600.0,0.00023,2]
[354686480,1740616486564,-600.0,0.00023,2]
[354686481,1740616486588,-600.0,0.00023,2]
[354686482,1740616486612,-600.0,0.00023,2]
[354686483,1740616486636,-600.0,0.00023,2]
[354686484,1740616486660,-600.0,0.00023,2]
[354686485,1740616486866,-600.0,0.00023,2]
[354686486,1740616486891,-600.0,0.00023,2]
[354686487,1740616486915,-600.0,0.00023,2]
[354686488,1740616486942,-600.0,0.00023,2]
[354686489,1740616486970,-600.0,0.00023,2]
[354686490,1740616486995,-600.0,0.00023,2]
[354686491,1740616487021,-833.00301535,0.00023,2]
[354686492,1740616487045,-244.76307685,0.00023,2]
[354686493,1740616487070,-500.0,0.00023,2]
[354686494,1740616487095,-500.0,0.00023,2]
[354686495,1740616487119,-2.80969487,0.00023,2]
[354686496,1740616487311,-497.19030513,0.00023,2]
[354686497,1740616487334,-500.77884374,0.0002325,2]
[354686498,1740616487359,-500.0,0.0002325,2]
[354686499,1740616487383,-500.0,0.0002325,2]
[354686500,1740616487406,-500.0,0.0002325,2]
[354686501,1740616487430,-500.0,0.0002325,2]
[354686502,1740616487453,-502.68886795,0.0002325,2]
[354686503,1740616487477,-500.0,0.0002325,2]
[354686504,1740616487500,-500.0,0.0002325,2]
[354686505,1740616487523,-500.0,0.0002325,2]
[354686506,1740616487546,-500.0,0.0002325,2]
[354686507,1740616487570,-500.0,0.0002325,2]
[354686508,1740616487593,-500.0,0.0002325,2]
[354686509,1740616487617,-400.0719195,0.0002325,2]
[354686510,1740616487641,-500.0,0.0002325,2]
[354686511,1740616487664,-500.0,0.0002325,2]
[354686512,1740616487689,-500.0,0.0002325,2]
[354686513,1740616487712,-500.0,0.0002325,2]
[354686514,1740616487736,-500.0,0.00023333,2]
[354686515,1740616487760,-432.64665824,0.000239,2]
[354686516,1740616487784,-465.68534659,0.000239,2]
[354686517,1740616487809,-500.0,0.00024,30]
[354686518,1740616487833,-500.0,0.00024,30]
[354686519,1740616487857,-500.0,0.00024,30]
[354686520,1740616487880,-500.0,0.00024,30]
[354686521,1740616487903,-189.39153096,0.00024,30]
[354686522,1740616487926,-500.0,0.00024,30]
[354686523,1740616487954,-500.0,0.00024,30]
[354686524,1740616487982,-600.0,0.00024,30]
[354686525,1740616488006,-600.0,0.00024,30]
[354686526,1740616488031,-500.0,0.00024,30]
[354686527,1740616488056,-600.0,0.00024,30]
[354686528,1740616488081,-500.0,0.00024,30]
[354686529,1740616488105,-190.0,0.00024,30]
[354686530,1740616488130,-500.0,0.00024,30]
[354686531,1740616488153,-600.0,0.00024,30]
[354686532,1740616488177,-600.0,0.00024,30]
[354686533,1740616488204,-500.0,0.00024,30]
[354686534,1740616488228,-600.0,0.00024,30]
[354686535,1740616488252,-500.0,0.00024,30]
[354686536,1740616488276,-600.0,0.00024,30]
[354686537,1740616488302,-600.0,0.00024,30]
[354686538,1740616488325,-500.0,0.00024,30]
[354686539,1740616488350,-600.0,0.00024,30]
[354686540,1740616488374,-600.0,0.00024,30]
[354686541,1740616488397,-600.0,0.00024,30]
[354686542,1740616488422,-600.0,0.00024,30]
[354686543,1740616488449,-600.0,0.00024,30]
[354686544,1740616488474,-151.0,0.00024,14]
[354686545,1740616488499,-370.54652789,0.00024,2]
[354686546,1740616489278,-25000.0,0.00024,2]
[354686547,1740616490174,-15931.44229616,0.00024,2]
[354686548,1740616490199,-349.78,0.00024,7]
[354686549,1740616490221,-900.0,0.00024,30]
[354686550,1740616490244,-500.0,0.00024,30]
[354686551,1740616490266,-500.0,0.00024,30]
[354686552,1740616490291,-500.0,0.00024,30]
[354686553,1740616490317,-500.0,0.00024,30]
[354686554,1740616490341,-163.9730473,0.00024,30]
[354686555,1740616490365,-505.06411708,0.00024,30]
[354686556,1740616490390,-1047.57210571,0.00025,2]
[354686557,1740616490414,-204.79021648,0.00025,2]
[354686558,1740616490440,-833.63882488,0.00025,2]
[354686559,1740616490464,-900.0,0.00025469,3]
[354686560,1740616490488,-1000.0,0.000255,2]
[354686561,1740616490512,-513.28428034,0.00026,2]
[354686562,1740616490538,-650.45511205,0.00026,30]
[354686563,1740616669328,233.0,0.0002,12]
[354686564,1740616713984,-150.0,0.000219,2]
[354686565,1740616821359,-28851.99513296,0.00026,30]
[354686597,1740617359100,-602.86304886,0.00023,2]
[354686598,1740617359122,-718.87995169,0.00023,2]
[354686599,1740617359142,-388.80527398,0.00023096,2]
[354686600,1740617359164,-415.98374101,0.000239,2]
[354686601,1740617359184,-336.89485871,0.00027,2]
[354686602,1740617359204,-127.285453,0.000288,7]
[354686666,1740617438653,-38.10365646,0.000288,7]
[354686667,1740617438663,-415.98374101,0.000289,2]
[354686669,1740617438673,-865.5542861,0.00029,2]
[354686670,1740617438682,-300.0,0.00029869,2]
[354686672,1740617438691,-19607.61712864,0.0002987,2]
[354686674,1740617438701,-352.0,0.0003,2]
[354686676,1740617438710,-161.67949252,0.00030137,2]
[354686678,1740617438721,-379.213969,0.00030215,2]
[354686680,1740617438730,-250.0,0.00030236,2]
[354686682,1740617438739,-152.45243897,0.0003035,2]
[354686684,1740617438748,-500.0,0.0003035,2]
[354686685,1740617438757,-24900.0,0.00030368,2]
[354686686,1740617438767,-170.1083753,0.00030619,2]
[354686687,1740617438776,-500.0,0.00030898,2]
[354686688,1740617438785,-562.77359236,0.000309,5]
[354686689,1740617438798,-299.09944927,0.0003099,2]
[354686690,1740617438807,-500.0,0.00031446,2]
[354686691,1740617438817,-197.06358327,0.00031945,120]
[354686692,1740617438826,-500.0,0.00031994,2]
[354686693,1740617438836,-420.0,0.00032197,2]
[354686694,1740617438845,-500.0,0.00032542,2]
[354686695,1740617438861,-500.0,0.00033,30]
[354686696,1740617438870,-500.0,0.00033,30]
[354686697,1740617438880,-500.0,0.00033,30]
[354686698,1740617438889,-302.0,0.0003309,2]
[354686699,1740617438899,-415.98374101,0.000339,2]
[354686700,1740617438908,-587.0,0.00034705,2]
[354686701,1740617438918,-841.68550404,0.00035,2]
[354686702,1740617438927,-500.0,0.00035,60]
[354686703,1740617438937,-153.91353284,0.000361,2]
[354686704,1740617438946,-693.75331473,0.00036198,2]
[354686705,1740617438956,-191.79729219,0.00036198,2]
[354686706,1740617438968,-500.0,0.00036199,15]
[354686707,1740617438978,-481.9997095,0.00036199,15]
[354686708,1740617438988,-231.45127836,0.00036199,2]
[354686709,1740617438997,-164.47932512,0.00036199,15]
[354686710,1740617439007,-500.0,0.00036199,15]
[354686711,1740617439016,-500.0,0.00036199,2]
[354686712,1740617439026,-500.0,0.00036199,15]
[354686713,1740617439035,-500.0,0.00036199,2]
[354686714,1740617439045,-500.0,0.00036199,15]
[354686715,1740617439054,-500.0,0.00036199,2]
[354686716,1740617439064,-250.0,0.00036199,2]
[354686717,1740617439073,-500.0,0.00036199,2]
[354686718,1740617439083,-500.0,0.00036199,15]
[354686719,1740617439092,-500.0,0.00036199,2]
[354686720,1740617439101,-500.0,0.00036199,15]
[354686721,1740617439110,-500.0,0.00036199,15]
[354686722,1740617439119,-500.0,0.00036199,2]
[354686723,1740617439129,-500.0,0.00036199,15]
[354686724,1740617439138,-500.0,0.00036199,15]
[354686725,1740617439148,-500.0,0.00036199,15]
[354686726,1740617439157,-500.0,0.00036199,15]
[354686727,1740617439166,-500.0,0.00036199,2]
[354686728,1740617439175,-500.0,0.00036199,2]
[354686729,1740617439185,-500.0,0.00036199,15]
[354686730,1740617439194,-500.0,0.00036199,15]
[354686731,1740617439203,-500.0,0.00036199,2]
[354686732,1740617439212,-500.0,0.00036199,15]
[354686733,1740617439224,-500.0,0.00036199,15]
[354686734,1740617439233,-500.0,0.00036199,2]
[354686735,1740617439242,-500.0,0.00036199,15]
[354686736,1740617439252,-500.0,0.00036199,15]
[354686737,1740617439266,-500.0,0.00036199,2]
[354686738,1740617439275,-500.0,0.00036199,2]
[354686739,1740617439284,-500.0,0.00036199,15]
[354686740,1740617439294,-500.0,0.00036199,2]
[354686741,1740617439303,-500.0,0.00036199,2]
[354686742,1740617439313,-500.0,0.00036199,15]
[354686743,1740617439322,-547.77526047,0.00036199,2]
[354686744,1740617439331,-500.0,0.00036199,2]